bitfinex/quotes_ETHUSD_20241123
["timestamp","ask_amount","ask_price","bid_price","bid_amount"]
[1732373143587,2.86944,3485.0,3484.5,0.59542891]
[1732373143588,2.1303937,3486.4,3484.7,0.25437403]
[1732373143787,1.247172,3488.0,3485.1,1.6614]
[1732373143788,1.6072,3486.8,3485.1,1.6614]
[1732373144080,2.86766,3487.2,3485.1,1.6614]
[1732373144081,2.86821,3486.5,3485.5,3.3828]
[1732373144296,2.86821,3486.5,3485.6,1.69007968]
[1732373144724,2.86846,3486.2,3485.6,1.69007968]
[1732373145013,2.86896,3485.6,3484.7,1.6614]
[1732373145223,2.86931,3485.2,3484.8,0.02868651]
[1732373145514,0.98794703,3485.1,3484.7,1.6614]
[1732373146076,2.86968,3484.7,3484.5,0.02868977]
[1732373146278,5.86935,3485.2,3484.1,1.69009397]
[1732373146510,2.86937,3485.1,3484.1,1.85623397]
[1732373146674,5.86935,3485.2,3484.1,1.85623397]
[1732373146675,3.0,3485.0,3484.1,1.85623397]
[1732373146871,3.0,3485.6,3484.1,2.2519899]
[1732373147076,2.86968,3484.8,3484.1,2.2519899]
[1732373147501,3.0,3484.9,3484.1,2.2519899]
[1732373147707,2.86865,3486.0,3484.3,1.6614]
[1732373147887,3.0,3485.6,3484.7,1.7218]
[1732373148105,3.0,3485.6,3484.9,1.6614]
[1732373148311,2.86851,3486.2,3485.1,1.6614]
[1732373148645,2.86877,3485.9,3485.2,0.02868228]
[1732373149216,2.86877,3485.9,3485.2,0.60460855]
[1732373149391,2.86853,3486.2,3485.3,1.72148]
[1732373149599,2.86813,3486.6,3485.4,1.69008218]
[1732373149944,2.86812,3486.6,3485.7,1.6614]
[1732373150105,2.86812,3486.6,3485.8,0.02867899]
[1732373150106,2.86813,3486.6,3485.8,0.02867899]
[1732373150424,2.8678,3487.0,3486.0,1.6614]
[1732373150622,2.86752,3487.4,3486.2,3.38247]
[1732373150930,2.86766,3487.2,3486.3,1.7496934]
[1732373151294,2.86752,3487.4,3486.3,1.7496934]
[1732373151495,2.86752,3487.4,3486.5,1.72089]
[1732373151496,2.86751,3487.4,3486.5,1.72089]
[1732373151712,2.86751,3487.4,3486.6,0.54187143]
[1732373152025,2.86731,3487.6,3486.7,1.6614]
[1732373152179,2.86731,3487.6,3486.8,0.02867038]
[1732373153025,3.0,3487.5,3486.8,0.02867038]
[1732373153831,2.86714,3487.8,3487.0,1.72064]
[1732373153987,2.86714,3487.8,3487.1,0.02866922]
[1732373154188,2.86724,3487.7,3487.1,0.02866922]
[1732373154486,0.1536301,3488.1,3487.2,1.6614]
[1732373154716,2.86697,3488.0,3487.3,0.02866483]
[1732373154889,0.1536301,3488.1,3487.3,0.02866483]
[1732373155106,3.1536301,3488.1,3487.3,0.19767131]
[1732373155423,0.1536301,3488.1,3487.4,3.38183]
[1732373155623,0.1536301,3488.1,3487.5,0.02866519]
[1732373155624,3.1536301,3488.1,3487.5,0.02866519]
[1732373155786,2.86697,3488.0,3487.4,1.6614]
[1732373156123,3.1536301,3488.1,3487.5,0.33828795]
[1732373156832,2.86697,3488.0,3487.5,0.33828795]
[1732373157033,3.1536301,3488.1,3487.5,0.33828795]
[1732373157188,3.0,3488.0,3487.5,0.33828795]
[1732373157687,3.0,3488.0,3487.4,1.6614]
[1732373157688,2.86724,3487.7,3487.4,1.6614]
[1732373158103,5.86703,3488.0,3487.4,1.6614]
[1732373158397,2.86706,3487.9,3487.4,1.6614]
[1732373158998,0.1536301,3488.1,3487.5,1.72042]
[1732373159309,0.1536301,3488.1,3487.7,1.5352]
[1732373159490,0.1536301,3488.1,3487.8,0.02866313]
[1732373160030,0.1536301,3488.1,3487.7,1.5352]
[1732373160188,0.1536301,3488.1,3487.7,1.56386455]
[1732373160395,0.1536301,3488.1,3487.8,0.17300046]
[1732373160700,0.1536301,3488.1,3487.9,0.0286631]
[1732373161290,0.1536301,3488.1,3487.8,0.20166352]
[1732373161605,3.0205901,3488.1,3487.8,0.02866306]
[1732373161796,2.86697,3488.0,3487.7,2.11480391]
[1732373161998,0.1536301,3488.1,3487.7,2.11480391]
[1732373162227,0.1536301,3488.1,3487.7,2.3428983]
[1732373162789,2.86713,3487.8,3487.7,1.5352]
[1732373162991,2.86751,3487.4,3487.3,1.5352]
[1732373163222,0.1536301,3488.1,3486.6,0.02867022]
[1732373163223,3.0,3487.5,3486.6,0.02867022]
[1732373163427,0.1536301,3488.1,3486.6,0.02867022]
[1732373163428,0.55,3488.0,3486.9,1.72072]
[1732373163600,2.86709,3487.9,3487.0,1.56386863]
[1732373163807,0.1536301,3488.1,3487.2,1.5352]
[1732373164137,0.1536301,3488.1,3487.4,1.5352]
[1732373164338,0.1536301,3488.1,3487.6,1.5352]
[1732373164493,0.1536301,3488.1,3487.7,0.21351983]
[1732373165008,0.1536301,3488.1,3488.0,1.5352]
[1732373165208,0.1536301,3488.1,3488.0,1.56386123]
[1732373165411,0.1536301,3488.1,3488.0,3.28404123]
[1732373165939,2.86553,3489.8,3488.2,4.5532]
[1732373166105,2.86553,3489.8,3488.1,0.1]
[1732373166106,2.86571,3489.6,3488.4,1.5352]
[1732373166302,2.86553,3489.8,3488.7,1.7198]
[1732373166535,2.86553,3489.8,3488.8,0.02865278]
[1732373166837,2.86561,3489.7,3488.9,3.25493]
[1732373167144,2.86562,3489.7,3489.0,0.02865271]
[1732373167447,1.6603,3490.4,3489.0,0.02865271]
[1732373167448,2.86537,3490.0,3489.0,0.02865271]
[1732373167599,2.86552,3489.8,3489.0,1.74833271]
[1732373167998,2.86537,3490.0,3489.1,1.71963]
[1732373168234,2.86537,3490.0,3488.9,1.5352]
[1732373168235,2.86515,3490.3,3489.5,1.71943]
[1732373168448,2.8649,3490.6,3489.6,0.0286479]
[1732373168938,2.86501,3490.4,3489.6,0.0286479]
[1732373169246,2.86466,3490.9,3489.9,3.25444]
[1732373169545,2.86473,3490.8,3490.0,0.02864342]
[1732373169742,2.86513,3490.3,3490.0,0.02864549]
[1732373170051,2.86513,3490.3,3489.9,1.5352]
[1732373170211,2.86485,3490.6,3489.9,1.5352]
[1732373170551,2.86509,3490.3,3489.9,1.5352]
[1732373170924,2.86492,3490.5,3489.9,1.5352]
[1732373171143,2.86462,3490.9,3490.0,0.02864598]
[1732373171512,2.86462,3490.9,3490.0,1.74781598]
[1732373171711,2.86462,3490.9,3490.0,0.02864598]
[1732373171938,2.86444,3491.1,3490.1,1.71914]
[1732373172217,3.0177701,3491.5,3490.2,1.74773165]
[1732373172463,2.86419,3491.4,3490.5,1.71894]
[1732373172661,2.86419,3491.4,3490.6,0.02863896]
[1732373172662,2.86429,3491.3,3490.6,0.02863896]
[1732373172952,0.1536301,3491.5,3490.6,0.02863896]
[1732373173474,3.0177401,3491.5,3490.6,0.02863896]
[1732373174320,2.86428,3491.3,3490.7,1.5487]
[1732373174523,2.86418,3491.4,3490.8,0.02863886]
[1732373175066,0.1536301,3491.5,3490.8,0.02863886]
[1732373175067,2.86427,3491.3,3490.8,0.02863886]
[1732373175863,2.86428,3491.3,3490.8,0.02863886]
[1732373176066,2.86433,3491.3,3490.8,0.02863886]
[1732373176839,0.1536301,3491.5,3490.7,1.5487]
[1732373177071,2.86446,3491.1,3490.8,0.02863909]
[1732373177364,2.86446,3491.1,3490.7,1.5487]
[1732373177668,2.86434,3491.2,3490.7,1.5487]
[1732373178038,2.86451,3491.0,3490.7,1.5487]
[1732373178252,2.86427,3491.3,3490.7,1.5487]
[1732373178435,2.86454,3491.0,3490.7,1.5487]
[1732373178850,2.86454,3491.0,3490.9,0.02847208]
[1732373180441,2.86444,3491.1,3490.9,0.02847208]
[1732373180645,2.86426,3491.4,3490.9,0.02847208]
[1732373180873,0.1536301,3491.5,3490.9,0.18618929]
[1732373180874,2.86427,3491.3,3490.9,0.18618929]
[1732373181370,0.1536301,3491.5,3491.0,1.57733928]
[1732373181531,0.1536301,3491.5,3491.2,3.018]
[1732373181728,0.1536301,3491.5,3491.3,0.02863418]
[1732373182034,0.1536301,3491.5,3491.4,4.5667]
[1732373182344,0.1536301,3491.5,3491.4,5.19809242]
[1732373182865,0.1536301,3491.5,3491.4,6.91659242]
[1732373183057,0.1536301,3491.5,3491.4,5.19809242]
[1732373183228,0.1536301,3491.5,3491.4,4.5667]
[1732373183687,3.0177201,3491.5,3491.4,1.5487]
[1732373183825,2.86437,3491.2,3491.0,3.018]
[1732373184030,2.86442,3491.1,3491.0,3.018]
[1732373184249,2.86442,3491.1,3490.9,1.57717208]
[1732373184462,2.8642,3491.4,3490.9,1.57717208]
[1732373184625,2.86437,3491.2,3490.9,4.78159433]
[1732373184829,0.1536301,3491.5,3490.9,4.56471702]
[1732373185038,0.1536301,3491.5,3491.0,0.02863721]
[1732373185268,0.1536301,3491.5,3491.1,3.018]
[1732373185470,0.1536301,3491.5,3491.0,0.02863721]
[1732373185471,0.1536301,3491.5,3491.3,3.018]
[1732373185640,0.1536301,3491.5,3491.4,0.02863359]
[1732373186153,0.1536301,3491.5,3491.4,4.76513359]
[1732373186937,0.1536301,3491.5,3491.4,0.02863359]
[1732373187171,0.1536301,3491.5,3490.8,0.2865]
[1732373187172,0.1536301,3491.5,3491.2,0.5696588]
[1732373187667,0.1536301,3491.5,3491.1,1.5487]
[1732373187872,3.0177301,3491.5,3491.1,1.5487]
[1732373188026,0.1536301,3491.5,3491.1,1.5487]
[1732373188227,2.86434,3491.2,3491.0,0.02863571]
[1732373188432,2.86426,3491.3,3490.7,1.5487]
[1732373188433,2.86451,3491.0,3490.7,1.5487]
[1732373188688,2.86451,3491.0,3490.7,1.70357]
[1732373188843,0.1536301,3491.5,3490.7,1.70357]
[1732373189168,2.86438,3491.2,3490.8,0.02863767]
[1732373189376,2.86459,3490.9,3490.5,0.02864171]
[1732373189672,2.86459,3490.9,3490.6,0.21284251]
[1732373189877,2.86442,3491.1,3490.6,0.21284251]
[1732373190033,2.86442,3491.1,3490.6,0.24148357]
[1732373190231,2.86426,3491.3,3490.6,3.25948357]
[1732373190452,2.86466,3490.9,3490.6,0.24148357]
[1732373190646,2.86466,3490.9,3490.4,0.02864188]
[1732373190854,0.1536301,3491.5,3490.3,1.5487]
[1732373190855,2.86475,3490.7,3490.3,1.57734188]
[1732373191056,2.86475,3490.7,3490.4,0.15773419]
[1732373191535,2.86428,3491.3,3490.4,3.76408491]
[1732373191730,2.86428,3491.3,3490.6,3.018]
[1732373191969,2.86428,3491.3,3490.7,0.0286394]
[1732373192171,3.0177301,3491.5,3490.9,3.018]
[1732373192330,3.0177301,3491.5,3490.9,3.04663846]
[1732373192331,2.86433,3491.3,3490.9,3.04663846]
[1732373192527,2.86433,3491.3,3490.9,3.018]
[1732373192779,2.86433,3491.3,3490.9,3.47753393]
[1732373193143,2.86435,3491.2,3490.9,3.47753393]
[1732373193732,2.86435,3491.2,3490.9,3.46735654]
[1732373193928,3.0177301,3491.5,3490.9,3.46735654]
[1732373194171,2.86426,3491.3,3490.9,3.49599504]
[1732373194328,2.86426,3491.3,3490.9,3.46735654]
[1732373194531,3.0177301,3491.5,3490.9,3.46735654]
[1732373194740,3.0177301,3491.5,3491.0,3.64535081]
[1732373194934,0.1536301,3491.5,3491.1,0.02863851]
[1732373195151,0.1536301,3491.5,3491.2,4.56934522]
[1732373195491,0.1536301,3491.5,3491.3,0.02863377]
[1732373195794,0.1536301,3491.5,3491.4,2.99764522]
[1732373196497,0.1536301,3491.5,3491.4,4.42973522]
[1732373196649,0.1536301,3491.5,3491.4,6.00143522]
[1732373198003,0.1536301,3491.5,3491.4,6.56831975]
[1732373198366,0.1536301,3491.5,3491.4,5.13622975]
[1732373198690,0.1536301,3491.5,3491.4,7.3140927]
[1732373198891,0.1536301,3491.5,3491.4,7.28546002]
[1732373199051,0.1536301,3491.5,3491.4,1.28546002]
[1732373199250,0.1536301,3491.5,3491.4,1.3072501]
[1732373199857,0.1536301,3491.5,3491.4,4.3252501]
[1732373200082,0.1536301,3491.5,3491.4,5.4637858]
[1732373201752,0.1536301,3491.5,3491.4,3.5966313]
[1732373201951,3.0177201,3491.5,3490.8,3.018]
[1732373202203,2.86419,3491.4,3491.0,4.5897]
[1732373202363,0.1536301,3491.5,3491.0,4.5897]
[1732373202569,0.1536301,3491.5,3491.1,0.02863822]
[1732373202971,0.1536301,3491.5,3491.2,3.018]
[1732373203166,0.1536301,3491.5,3491.3,0.02863326]
[1732373203370,0.1536301,3491.5,3491.4,6.57179]
[1732373205886,0.1536301,3491.5,3491.4,4.5897]
[1732373206061,0.1536301,3491.5,3491.4,4.61833251]
[1732373206259,0.1536301,3491.5,3491.4,4.5897]
[1732373206590,0.1536301,3491.5,3491.3,3.04663487]
[1732373206906,0.1536301,3491.5,3491.4,3.018]
[1732373207200,3.0177201,3491.5,3491.4,3.018]
[1732373207401,3.0177201,3491.5,3491.1,4.5897]
[1732373207567,3.0177201,3491.5,3491.1,3.018]
[1732373207568,2.86434,3491.2,3491.1,3.018]
[1732373207765,2.86434,3491.2,3490.7,1.5717]
[1732373207989,2.86458,3491.0,3490.6,0.02864008]
[1732373208174,2.86458,3491.0,3490.4,0.02864128]
[1732373208175,2.86476,3490.7,3490.4,0.02864128]
[1732373208382,2.86451,3491.0,3490.4,3.018]
[1732373208697,1.6331,3491.2,3490.6,3.018]
[1732373208698,2.86435,3491.2,3490.6,3.018]
[1732373208919,2.86435,3491.2,3490.6,3.04664051]
[1732373209091,0.1536301,3491.5,3490.6,3.04664051]
[1732373209280,0.1536301,3491.5,3490.8,4.45032]
[1732373209485,2.86419,3491.4,3490.9,3.59663742]
[1732373209696,0.1536301,3491.5,3490.9,0.02863819]
[1732373209912,2.8645,3491.0,3490.9,0.02863839]
[1732373210064,2.86437,3491.2,3490.8,3.018]
[1732373210400,2.86426,3491.3,3490.6,3.04664074]
[1732373210607,2.86435,3491.2,3490.6,3.43592389]
[1732373210805,0.1536301,3491.5,3490.6,3.018]
[1732373210806,2.86466,3490.9,3490.6,3.018]
[1732373210970,2.86468,3490.8,3490.6,3.018]
[1732373211363,2.86468,3490.8,3490.4,3.018]
[1732373211676,2.86468,3490.8,3490.7,3.018]
[1732373211864,2.86444,3491.1,3490.7,3.018]
[1732373212063,2.86462,3490.9,3490.4,3.018]
[1732373212295,2.8647,3490.8,3490.4,3.018]
[1732373212492,2.865,3490.4,3490.3,0.86]
[1732373213778,2.86489,3490.6,3490.3,0.86]
[1732373213984,1.6331,3491.1,3490.4,1.60034751]
[1732373214310,0.1536301,3491.5,3490.9,3.018]
[1732373214483,3.0177301,3491.5,3491.0,0.02863777]
[1732373214686,3.0177301,3491.5,3490.9,3.04663813]
[1732373214687,2.86421,3491.4,3490.9,3.04663813]
[1732373214876,0.1536301,3491.5,3490.9,3.018]
[1732373215377,2.86444,3491.1,3490.8,3.04663882]
[1732373215581,2.86418,3491.4,3490.8,3.018]
[1732373215875,0.1536301,3491.5,3490.8,3.018]
[1732373215876,2.86433,3491.3,3490.8,3.018]
[1732373216219,2.86433,3491.3,3490.7,0.59727828]
[1732373216220,2.86459,3490.9,3490.7,0.02863979]
[1732373216519,2.86475,3490.7,3489.8,3.018]
[1732373216721,3.0,3491.4,3490.1,3.018]
[1732373216722,2.86459,3490.9,3490.1,3.018]
[1732373217012,0.1536301,3491.5,3490.7,3.018]
[1732373217213,0.1536301,3491.5,3490.6,1.5717]
[1732373217214,0.1536301,3491.5,3491.0,3.018]
[1732373217415,0.1536301,3491.5,3491.2,3.018]
[1732373217650,0.1536301,3491.5,3491.3,1.5717]
[1732373217927,3.0177601,3491.5,3490.9,1.60033722]
[1732373218719,0.1036301,3491.5,3491.0,3.018]
[1732373219030,0.1036301,3491.5,3491.1,0.02863535]
[1732373219207,0.1036301,3491.5,3491.0,3.04663764]
[1732373219706,2.9677301,3491.5,3491.0,3.62488692]
[1732373219901,2.9677301,3491.5,3491.0,3.59624928]
[1732373220104,0.1036301,3491.5,3491.0,3.59624928]
[1732373220436,2.86418,3491.4,3490.6,1.5717]
[1732373220641,2.86468,3490.8,3490.2,1.5717]
[1732373220850,0.1036301,3491.5,3490.3,0.56267783]
[1732373221143,0.1036301,3491.5,3490.4,0.02864104]
[1732373221144,2.86442,3491.2,3490.4,0.02864104]
[1732373221359,2.86442,3491.2,3490.5,0.35955389]
[1732373221491,2.86443,3491.1,3490.6,3.018]
[1732373221688,2.86436,3491.2,3490.6,3.018]
[1732373222026,1.6331,3490.8,3490.3,0.02864129]
[1732373222226,2.86509,3490.3,3489.9,0.02864129]
[1732373222540,4.49777,3490.8,3489.9,3.17803413]
[1732373222706,2.86478,3490.7,3490.0,0.02864554]
[1732373222909,2.86478,3490.7,3490.2,3.018]
[1732373223128,2.86451,3491.0,3490.2,3.018]
[1732373223296,2.86432,3491.3,3490.6,3.018]
[1732373223499,2.86418,3491.4,3490.8,3.018]
[1732373223725,2.86418,3491.4,3490.8,3.04664052]
[1732373223936,2.86418,3491.4,3490.8,3.018]
[1732373224190,2.86441,3491.2,3490.8,3.018]
[1732373224391,2.86455,3491.0,3490.8,3.018]
[1732373224848,2.86459,3490.9,3490.8,3.018]
[1732373225352,2.86482,3490.7,3490.3,3.018]
[1732373226037,2.86418,3491.4,3490.3,3.018]
[1732373226038,2.86483,3490.6,3490.3,3.018]
[1732373226243,2.86452,3491.0,3490.3,3.018]
[1732373226452,2.86476,3490.7,3490.3,3.018]
[1732373226942,3.0,3491.3,3490.3,3.018]
[1732373226943,2.8647,3490.8,3490.3,3.018]
[1732373227101,2.8647,3490.8,3490.3,3.04664477]
[1732373227302,2.86449,3491.1,3490.3,3.018]
[1732373227570,3.0,3491.3,3490.3,3.04664477]
[1732373227846,7.4899901,3491.5,3490.3,3.04664477]
[1732373228002,2.86452,3491.0,3490.3,3.04664477]
[1732373228202,2.86459,3490.9,3490.3,3.04664477]
[1732373228410,2.86451,3491.0,3490.3,3.04664477]
[1732373229118,4.6258301,3491.5,3490.3,4.47917477]
[1732373229119,2.86432,3491.3,3490.3,4.47917477]
[1732373229306,2.9678001,3491.5,3490.7,1.43237]
[1732373229511,2.9678001,3491.5,3490.8,3.04663902]
[1732373229750,2.86429,3491.3,3490.8,3.04663902]
[1732373229903,2.86449,3491.1,3490.8,3.018]
[1732373230640,0.1036301,3491.5,3491.1,0.55]
[1732373230845,4.38597,3491.9,3491.4,3.018]
[1732373231002,1.5222,3491.9,3491.4,3.018]
[1732373231198,2.86334,3492.5,3491.4,3.018]
[1732373231199,2.86351,3492.3,3491.4,3.018]
[1732373231400,2.86353,3492.2,3491.5,0.02863384]
[1732373231641,2.8636,3492.1,3491.4,3.04663414]
[1732373232140,2.86347,3492.3,3491.6,3.018]
[1732373232341,0.286334,3492.4,3491.7,4.71003358]
[1732373232759,2.86345,3492.3,3491.7,4.71003358]
[1732373232970,2.86345,3492.3,3491.7,4.6814]
[1732373233182,2.86356,3492.2,3491.7,4.6814]
[1732373233458,2.86362,3492.1,3491.7,4.6814]
[1732373233668,3.0,3492.3,3491.4,3.04663373]
[1732373233825,2.86401,3491.6,3491.1,3.04663668]
[1732373234026,2.86401,3491.6,3490.7,1.69203855]
[1732373234027,2.86428,3491.3,3490.7,1.69203855]
[1732373234230,2.86428,3491.3,3490.7,1.6634]
[1732373234454,2.86453,3491.0,3490.7,1.6634]
[1732373234651,2.86453,3491.0,3490.3,0.02864204]
[1732373234969,2.86453,3491.0,3490.1,4.47926344]
[1732373235262,2.86459,3490.9,3490.3,3.018]
[1732373235567,2.86483,3490.7,3490.3,3.018]
[1732373235877,2.86483,3490.7,3489.5,1.71933]
[1732373235878,2.86539,3490.0,3489.6,4.71004539]
[1732373236044,3.0,3491.3,3488.3,0.2865]
[1732373236045,2.86569,3489.6,3489.2,1.6634]
[1732373236630,2.96448,3491.1,3488.9,1.46175389]
[1732373236631,2.86574,3489.5,3488.9,0.02865389]
[1732373236848,2.86574,3489.5,3488.8,4.71005533]
[1732373237386,1.5222,3489.8,3488.7,0.02865551]
[1732373237525,4.3877,3489.8,3488.7,0.02865551]
[1732373237730,2.86588,3489.4,3488.7,0.25415985]
[1732373237957,2.86567,3489.6,3488.7,0.25415985]
[1732373238173,2.8659,3489.3,3488.7,0.02865551]
[1732373238465,2.86595,3489.3,3488.6,0.0286575]
[1732373238763,2.86595,3489.3,3488.4,1.6634]
[1732373238764,2.86639,3488.7,3488.4,0.02865865]
[1732373238929,2.86625,3488.9,3488.0,3.04666112]
[1732373239136,2.86639,3488.7,3488.0,3.21300112]
[1732373239337,2.86625,3488.9,3488.0,3.21300112]
[1732373239525,2.86625,3488.9,3488.0,4.64648112]
[1732373239764,2.86672,3488.4,3488.0,3.04666112]
[1732373239962,2.86672,3488.4,3487.9,1.6634]
[1732373239963,2.86662,3488.5,3487.9,1.6634]
[1732373240365,2.86639,3488.7,3487.9,5.2957704]
[1732373240675,2.86689,3488.1,3487.7,0.02866255]
[1732373240848,2.86639,3488.7,3487.4,3.04666694]
[1732373241036,2.86703,3488.0,3487.4,3.35638694]
[1732373241234,2.86703,3488.0,3487.5,3.81997869]
[1732373241468,2.86703,3488.0,3487.6,0.57152177]
[1732373241775,3.0,3487.7,3487.6,0.52152177]
[1732373241942,1.5222,3488.3,3486.6,1.43404]
[1732373241943,4.5222,3488.3,3487.0,0.02866778]
[1732373242142,2.86738,3487.5,3487.0,0.02866778]
[1732373242343,2.86738,3487.5,3486.9,1.950195]
[1732373242344,2.86738,3487.5,3486.9,1.69207087]
[1732373242531,3.0,3488.1,3486.9,2.06326867]
[1732373242737,3.0,3488.0,3486.9,3.49715867]
[1732373242938,2.86721,3487.8,3487.0,0.40830458]
[1732373243277,2.86721,3487.8,3487.1,0.02866967]
[1732373243576,2.86723,3487.7,3487.1,0.02866967]
[1732373243730,2.86723,3487.7,3487.0,0.43697468]
[1732373244333,2.86731,3487.6,3487.0,0.0286701]
[1732373245029,2.86746,3487.5,3486.9,1.69207062]
[1732373245666,3.0,3488.0,3486.9,1.6634]
[1732373245867,2.86745,3487.5,3486.9,1.6634]
[1732373246073,2.86747,3487.4,3486.9,1.6634]
[1732373246455,2.86747,3487.4,3486.5,1.43409]
[1732373246456,2.86787,3487.0,3486.6,0.02867279]
[1732373246780,2.86697,3488.0,3487.0,0.86]
[1732373246978,2.86741,3487.5,3487.0,0.86]
[1732373247191,2.86746,3487.4,3487.0,0.81]
[1732373247342,2.8673,3487.6,3487.0,0.81]
[1732373247542,2.8674,3487.5,3487.0,0.81]
[1732373247745,2.86763,3487.2,3487.0,0.81]
[1732373247982,2.86771,3487.1,3487.0,0.81]
[1732373248187,2.86757,3487.3,3487.0,0.81]
[1732373248400,2.86771,3487.1,3487.0,0.81]
[1732373248582,2.86757,3487.3,3487.0,0.81]
[1732373248753,3.0,3487.5,3487.0,0.81]
[1732373248955,5.8674,3487.5,3487.0,0.81]
[1732373249154,2.86739,3487.5,3487.0,0.81]
[1732373249365,2.86713,3487.8,3487.0,0.81]
[1732373249584,2.86771,3487.1,3487.0,0.81]
[1732373250275,7.38991,3487.1,3487.0,0.81]
[1732373250649,2.8687,3485.9,3485.2,1.6634]
[1732373250856,2.86894,3485.7,3484.8,1.43479]
[1732373251090,2.86894,3485.6,3484.6,1.6634]
[1732373251452,2.86935,3485.1,3484.6,1.6634]
[1732373251603,2.86911,3485.4,3484.6,1.6634]
[1732373251781,2.86891,3485.7,3484.7,1.62986222]
[1732373252094,4.39093,3485.9,3484.7,1.62986222]
[1732373252095,2.86873,3485.9,3484.8,4.78212622]
[1732373252300,2.86887,3485.7,3484.9,0.02868728]
[1732373252503,3.0,3486.0,3484.9,0.24746263]
[1732373252789,2.86886,3485.8,3484.9,1.68220263]
[1732373253001,2.86887,3485.7,3485.0,0.47002026]
[1732373253154,5.86864,3486.0,3484.9,0.24746263]
[1732373253362,2.86845,3486.2,3485.0,0.16822526]
[1732373253666,2.86845,3486.2,3484.9,1.68221263]
[1732373253667,2.86823,3486.5,3485.4,3.018]
[1732373253999,0.57110691,3487.8,3486.1,1.43426]
[1732373254000,2.8678,3487.0,3486.1,1.43426]
[1732373254206,2.868,3486.8,3486.1,0.02867671]
[1732373254369,1.6598,3487.1,3485.9,0.0286793]
[1732373254572,2.86829,3486.4,3485.9,0.0286793]
[1732373254891,2.86784,3487.0,3485.8,5.02163455]
[1732373255093,2.86789,3486.9,3485.9,0.02867767]
[1732373255330,4.6598,3487.1,3486.0,0.46845777]
[1732373255478,4.6598,3487.1,3486.1,0.02867666]
[1732373255479,2.86794,3486.9,3486.1,0.02867666]
[1732373255671,2.86795,3486.9,3486.1,0.02867666]
[1732373255900,1.6598,3487.1,3486.1,0.02867666]
[1732373256171,2.86821,3486.5,3486.1,0.02867752]
[1732373256399,2.86821,3486.5,3485.8,1.66657996]
[1732373256581,1.6598,3487.1,3485.9,0.46559]
[1732373256790,2.86812,3486.6,3486.0,0.02867735]
[1732373256984,1.6598,3487.7,3486.1,0.02867957]
[1732373257196,1.6598,3487.7,3486.2,1.4342]
[1732373257197,3.0,3487.5,3486.2,1.4342]
[1732373257412,3.0,3487.5,3486.7,1.6379]
[1732373257413,2.86738,3487.5,3486.7,1.6379]
[1732373257582,2.86738,3487.5,3486.7,1.66657292]
[1732373257773,4.52703,3487.7,3486.7,3.10057292]
[1732373257971,0.6598,3487.7,3486.7,1.97663021]
[1732373258409,2.8673,3487.6,3486.7,1.97663021]
[1732373258577,2.86713,3487.8,3486.7,1.97663021]
[1732373258775,2.86713,3487.8,3486.8,1.77503802]
[1732373258981,2.86699,3488.0,3486.9,0.02867065]
[1732373258982,2.86722,3487.7,3486.9,0.02867065]
[1732373260188,2.86722,3487.7,3486.9,1.46260065]
[1732373260375,2.86648,3488.6,3486.9,1.46260065]
[1732373260376,2.86574,3489.5,3488.2,8.83]
[1732373260601,0.1,3489.9,3487.0,0.48755787]
[1732373260602,2.86631,3488.9,3487.5,3.58100758]
[1732373260801,0.286574,3489.4,3487.6,3.10021222]
[1732373261002,2.86657,3488.5,3487.7,0.66812198]
[1732373261175,2.86624,3488.9,3487.6,1.66656387]
[1732373261381,2.86629,3488.9,3487.8,1.43356]
[1732373261581,2.86607,3489.1,3488.1,1.43342]
[1732373261803,1.6598,3489.4,3488.4,1.6379]
[1732373262017,2.86587,3489.4,3488.5,0.02865794]
[1732373262200,1.6598,3489.8,3488.5,0.02865794]
[1732373262401,0.22326029,3489.7,3488.5,0.02865794]
[1732373262580,3.08886029,3489.7,3488.5,0.02865794]
[1732373262986,2.86591,3489.3,3488.5,0.02865794]
[1732373263332,0.22326029,3489.7,3488.4,1.6379]
[1732373263333,2.86607,3489.1,3488.4,1.6379]
[1732373263627,0.18830603,3489.6,3488.0,1.6379]
[1732373263827,0.18830603,3489.6,3488.0,1.66656039]
[1732373263828,3.0,3489.0,3488.0,1.66656039]
[1732373264123,5.86642,3488.7,3488.0,1.66656039]
[1732373264486,3.0,3489.2,3488.0,3.10004039]
[1732373264815,2.86627,3488.9,3488.0,3.10004039]
[1732373265028,3.0,3488.8,3488.0,3.10004039]
[1732373265322,3.0,3489.6,3488.1,0.02866091]
[1732373265495,3.0,3488.8,3488.1,0.195317]
[1732373265695,3.0,3488.8,3488.0,1.66656092]
[1732373266022,2.86649,3488.6,3488.0,1.66656092]
[1732373266221,3.0,3488.8,3488.0,1.6379]
[1732373266533,5.86632,3488.8,3488.0,1.6379]
[1732373266823,5.86632,3488.8,3488.1,0.31001227]
[1732373267527,2.8664,3488.7,3488.1,0.31001227]
[1732373267697,2.8664,3488.7,3488.0,1.6379]
[1732373268085,1.6598,3488.8,3488.1,0.02866236]
[1732373268423,1.6598,3488.8,3486.4,0.2]
[1732373268424,2.86723,3487.7,3486.7,1.6379]
[1732373268722,2.86739,3487.5,3486.8,0.02867078]
[1732373269311,2.8671,3487.9,3486.7,1.6379]
[1732373269496,3.0,3487.6,3486.8,0.33586912]
[1732373269695,2.86751,3487.4,3486.8,0.02867012]
[1732373269911,0.02839396,3488.3,3487.3,1.6379]
[1732373270082,0.02839396,3488.3,3487.4,0.19245436]
[1732373270292,0.02839396,3488.3,3487.7,1.43359]
[1732373270492,0.02839396,3488.3,3487.8,0.02866389]
[1732373271035,0.02839396,3488.3,3487.7,0.02866424]
[1732373271198,0.02839396,3488.3,3487.7,0.35219624]
[1732373271735,0.02839396,3488.3,3487.8,3.018]
[1732373272745,0.02839396,3488.3,3487.6,3.04666507]
[1732373273030,0.02839396,3488.3,3487.6,3.70477646]
[1732373274527,0.02839396,3488.3,3487.6,4.85168646]